[Event "Titled Tuesday Blitz August 08 Late 2023"]
[White "Sam, Gabriel"]
[Black "Real_taiatai"]
[WhiteFideId "75000776"]
[WhiteElo "2510"]
[BlackElo "2371"]
[Result "1-0"]
[Round "5"]
[TimeControl "180+1"]
[Date "2023.08.08"]
[WhiteClock "0:00:06"]
[BlackClock "0:00:05"]
[Board "102"]

1. e4 {[%clk 0:03:00]}  e5 {[%clk 0:03:00]} 2. Nf3 {[%clk 0:02:58]}  Nc6 {[%clk 0:03:00]} 3. Bb5 {[%clk 0:02:54]}  a6 {[%clk 0:03:00]} 4. Ba4 {[%clk 0:02:53]}  Nge7 {[%clk 0:03:00]} 5. O-O {[%clk 0:02:48]}  g6 {[%clk 0:03:01]} 6. c3 {[%clk 0:02:17]}  Bg7 {[%clk 0:03:00]} 7. d4 {[%clk 0:02:18]}  exd4 {[%clk 0:02:59]} 8. cxd4 {[%clk 0:02:18]}  d6 {[%clk 0:02:56]} 9. Nc3 {[%clk 0:02:14]}  O-O {[%clk 0:02:55]} 10. h3 {[%clk 0:02:12]}  b5 {[%clk 0:02:53]} 11. Bc2 {[%clk 0:02:09]}  Nb4 {[%clk 0:02:51]} 12. Bb1 {[%clk 0:02:01]}  c5 {[%clk 0:02:50]} 13. d5 {[%clk 0:01:58]}  c4 {[%clk 0:02:41]} 14. a3 {[%clk 0:01:55]}  Nd3 {[%clk 0:02:41]} 15. Bxd3 {[%clk 0:01:55]}  cxd3 {[%clk 0:02:41]} 16. Qxd3 {[%clk 0:01:56]}  h6 {[%clk 0:02:11]} 17. Re1 {[%clk 0:01:52]}  Qc7 {[%clk 0:01:51]} 18. Bf4 {[%clk 0:01:43]}  g5 {[%clk 0:01:50]} 19. Bh2 {[%clk 0:01:42]}  Ng6 {[%clk 0:01:49]} 20. Rad1 {[%clk 0:01:33]}  f5 {[%clk 0:01:42]} 21. e5 {[%clk 0:01:15]}  Qf7 {[%clk 0:00:54]} 22. e6 {[%clk 0:01:01]}  Qe7 {[%clk 0:00:52]} 23. Nd4 {[%clk 0:00:59]}  Bxd4 {[%clk 0:00:27]} 24. Qxd4 {[%clk 0:01:00]}  Bb7 {[%clk 0:00:25]} 25. a4 {[%clk 0:00:53]}  bxa4 {[%clk 0:00:19]} 26. Nxa4 {[%clk 0:00:53]}  f4 {[%clk 0:00:19]} 27. f3 {[%clk 0:00:44]}  Rf5 {[%clk 0:00:17]} 28. Nb6 {[%clk 0:00:34]}  Raf8 {[%clk 0:00:17]} 29. Kh1 {[%clk 0:00:34]}  h5 {[%clk 0:00:16]} 30. Qe4 {[%clk 0:00:29]}  g4 {[%clk 0:00:17]} 31. hxg4 {[%clk 0:00:25]}  hxg4 {[%clk 0:00:17]} 32. fxg4 {[%clk 0:00:26]}  Rg5 {[%clk 0:00:16]} 33. Nd7 {[%clk 0:00:22]}  Qh7 {[%clk 0:00:12]} 34. Nxf8 {[%clk 0:00:19]}  Kxf8 {[%clk 0:00:13]} 35. e7+ {[%clk 0:00:17]}  Ke8 {[%clk 0:00:13]} 36. Qb4 {[%clk 0:00:08]}  Bc8 {[%clk 0:00:07]} 37. Qa4+ {[%clk 0:00:06]}  Bd7 {[%clk 0:00:04]} 38. Qxd7+ {[%clk 0:00:07]}  Kxd7 {[%clk 0:00:05]} 39. e8=Q+ {[%clk 0:00:08]}  Kc7 {[%clk 0:00:05]} 40. Qc6+ {[%clk 0:00:06]}  Kd8 {[%clk 0:00:05]} 41. Re8# {[%clk 0:00:06]} 1-0


[Site "https://www.chess.com"]

[Event "Titled Tuesday Blitz August 08 Late 2023"]
[White "Geivondian, Arman"]
[Black "Andrews, Todd"]
[WhiteFideId "24102032"]
[BlackFideId "2012456"]
[WhiteElo "2510"]
[BlackElo "2370"]
[Result "0-1"]
[Round "5"]
[TimeControl "180+1"]
[Date "2023.08.08"]
[WhiteClock "0:00:38"]
[BlackClock "0:00:31"]
[Board "103"]

1. e4 {[%clk 0:03:00]}  c5 {[%clk 0:02:58]} 2. Nf3 {[%clk 0:03:01]}  d6 {[%clk 0:02:59]} 3. Bb5+ {[%clk 0:03:00]}  Nd7 {[%clk 0:02:58]} 4. d4 {[%clk 0:02:59]}  cxd4 {[%clk 0:02:55]} 5. Qxd4 {[%clk 0:03:00]}  e5 {[%clk 0:02:53]} 6. Qd3 {[%clk 0:03:00]}  h6 {[%clk 0:02:53]} 7. c4 {[%clk 0:03:00]}  Nf6 {[%clk 0:02:53]} 8. Nc3 {[%clk 0:03:00]}  a6 {[%clk 0:02:53]} 9. Bxd7+ {[%clk 0:03:00]}  Bxd7 {[%clk 0:02:52]} 10. Be3 {[%clk 0:03:00]}  Bc6 {[%clk 0:02:52]} 11. b3 {[%clk 0:03:00]}  Be7 {[%clk 0:02:52]} 12. O-O {[%clk 0:03:01]}  O-O {[%clk 0:02:52]} 13. Rad1 {[%clk 0:03:01]}  Qa5 {[%clk 0:02:51]} 14. Bd2 {[%clk 0:02:58]}  Qc7 {[%clk 0:02:49]} 15. Rfe1 {[%clk 0:02:58]}  Rfc8 {[%clk 0:02:42]} 16. Nh4 {[%clk 0:02:57]}  Nxe4 {[%clk 0:02:26]} 17. Rxe4 {[%clk 0:02:56]}  Bxe4 {[%clk 0:02:22]} 18. Qxe4 {[%clk 0:02:57]}  Bxh4 {[%clk 0:02:16]} 19. Qxh4 {[%clk 0:02:57]}  b5 {[%clk 0:02:14]} 20. Nd5 {[%clk 0:02:57]}  Qd8 {[%clk 0:02:02]} 21. Qg3 {[%clk 0:02:57]}  Kh8 {[%clk 0:01:51]} 22. Be3 {[%clk 0:02:48]}  Rab8 {[%clk 0:01:44]} 23. Qh3 {[%clk 0:02:34]}  Qf8 {[%clk 0:01:28]} 24. cxb5 {[%clk 0:02:29]}  axb5 {[%clk 0:01:28]} 25. g4 {[%clk 0:02:25]}  f6 {[%clk 0:01:25]} 26. Rd2 {[%clk 0:02:17]}  Rc1+ {[%clk 0:01:23]} 27. Kg2 {[%clk 0:02:17]}  Rbc8 {[%clk 0:01:19]} 28. a4 {[%clk 0:02:05]}  bxa4 {[%clk 0:01:17]} 29. bxa4 {[%clk 0:02:06]}  R1c2 {[%clk 0:01:17]} 30. Rxc2 {[%clk 0:02:02]}  Rxc2 {[%clk 0:01:18]} 31. Qf3 {[%clk 0:02:02]}  Rc4 {[%clk 0:01:05]} 32. Qf5 {[%clk 0:01:41]}  Qa8 {[%clk 0:01:00]} 33. Qf3 {[%clk 0:01:35]}  Rxa4 {[%clk 0:00:50]} 34. h3 {[%clk 0:01:34]}  Ra5 {[%clk 0:00:45]} 35. Nb6 {[%clk 0:01:24]}  Qxf3+ {[%clk 0:00:44]} 36. Kxf3 {[%clk 0:01:25]}  d5 {[%clk 0:00:42]} 37. h4 {[%clk 0:01:20]}  Rb5 {[%clk 0:00:42]} 38. Nd7 {[%clk 0:01:17]}  Kg8 {[%clk 0:00:42]} 39. Ba7 {[%clk 0:00:48]}  Rb7 {[%clk 0:00:36]} 40. Nxf6+ {[%clk 0:00:37]}  gxf6 {[%clk 0:00:36]} 41. Be3 {[%clk 0:00:38]}  Kg7 {[%clk 0:00:36]} 42. h5 {[%clk 0:00:39]}  Rb3 {[%clk 0:00:34]} 43. Ke2 {[%clk 0:00:39]}  d4 {[%clk 0:00:32]} 44. Bd2 {[%clk 0:00:38]}  e4 {[%clk 0:00:32]} 45. Bf4 {[%clk 0:00:38]}  Rf3 {[%clk 0:00:31]} 46. Bc1 {[%clk 0:00:37]}  d3+ {[%clk 0:00:31]} 47. Ke1 {[%clk 0:00:37]}  f5 {[%clk 0:00:30]} 48. g5 {[%clk 0:00:35]}  hxg5 {[%clk 0:00:30]} 49. Bxg5 {[%clk 0:00:36]}  Rh3 {[%clk 0:00:30]} 50. h6+ {[%clk 0:00:36]}  Kg6 {[%clk 0:00:30]} 51. Be3 {[%clk 0:00:36]}  Rxe3+ {[%clk 0:00:29]} 52. fxe3 {[%clk 0:00:37]}  Kxh6 {[%clk 0:00:30]} 53. Kf2 {[%clk 0:00:38]}  Kg5 {[%clk 0:00:31]} 54. Ke1 {[%clk 0:00:38]}  Kg4 {[%clk 0:00:31]} 55. Kd2 {[%clk 0:00:38]}  Kf3 {[%clk 0:00:31]} 0-1


[Site "https://www.chess.com"]

[Event "Titled Tuesday Blitz August 08 Late 2023"]
[White "Hansen, Torbjorn Ringdal"]
[Black "Lopez Gracia, Fernando"]
[WhiteFideId "1501720"]
[BlackFideId "2207184"]
[WhiteElo "2508"]
[BlackElo "2343"]
[Result "1-0"]
[Round "5"]
[TimeControl "180+1"]
[Date "2023.08.08"]
[WhiteClock "0:01:06"]
[BlackClock "0:00:47"]
[Board "107"]

1. e4 {[%clk 0:03:00]}  c5 {[%clk 0:02:56]} 2. Nf3 {[%clk 0:03:00]}  e6 {[%clk 0:02:52]} 3. c3 {[%clk 0:02:59]}  Nf6 {[%clk 0:02:44]} 4. Bd3 {[%clk 0:02:58]}  d5 {[%clk 0:02:43]} 5. e5 {[%clk 0:02:56]}  Nfd7 {[%clk 0:02:44]} 6. Bc2 {[%clk 0:02:56]}  d4 {[%clk 0:02:45]} 7. O-O {[%clk 0:02:51]}  Nc6 {[%clk 0:02:44]} 8. Re1 {[%clk 0:02:46]}  Be7 {[%clk 0:02:41]} 9. Na3 {[%clk 0:02:42]}  a6 {[%clk 0:02:39]} 10. Nc4 {[%clk 0:02:35]}  b5 {[%clk 0:02:38]} 11. Nd6+ {[%clk 0:02:34]}  Bxd6 {[%clk 0:02:39]} 12. exd6 {[%clk 0:02:35]}  Nf6 {[%clk 0:02:38]} 13. a4 {[%clk 0:02:32]}  b4 {[%clk 0:02:32]} 14. a5 {[%clk 0:02:20]}  Qxd6 {[%clk 0:02:31]} 15. Ba4 {[%clk 0:02:20]}  O-O {[%clk 0:02:26]} 16. Bxc6 {[%clk 0:02:08]}  Qxc6 {[%clk 0:02:27]} 17. cxd4 {[%clk 0:02:08]}  cxd4 {[%clk 0:02:22]} 18. Nxd4 {[%clk 0:02:06]}  Qd5 {[%clk 0:02:22]} 19. Nf3 {[%clk 0:02:05]}  Bb7 {[%clk 0:02:21]} 20. d4 {[%clk 0:02:05]}  Rac8 {[%clk 0:02:17]} 21. Be3 {[%clk 0:01:58]}  b3 {[%clk 0:02:11]} 22. Bd2 {[%clk 0:01:49]}  Rc2 {[%clk 0:02:04]} 23. Re5 {[%clk 0:01:41]}  Qc6 {[%clk 0:02:01]} 24. Bc3 {[%clk 0:01:40]}  Ne4 {[%clk 0:01:59]} 25. Bb4 {[%clk 0:01:31]}  Rc8 {[%clk 0:01:52]} 26. Ba3 {[%clk 0:01:28]}  Nxf2 {[%clk 0:01:21]} 27. d5 {[%clk 0:01:29]}  exd5 {[%clk 0:01:08]} 28. Qd4 {[%clk 0:01:28]}  Ne4 {[%clk 0:01:02]} 29. h3 {[%clk 0:01:26]}  Qg6 {[%clk 0:00:59]} 30. Ne1 {[%clk 0:01:16]}  Rd2 {[%clk 0:00:56]} 31. Qa4 {[%clk 0:01:08]}  Qg3 {[%clk 0:00:51]} 32. Qe8+ {[%clk 0:01:06]}  Rxe8 {[%clk 0:00:47]} 33. Rxe8# {[%clk 0:01:06]} 1-0


[Site "https://www.chess.com"]

[Event "Titled Tuesday Blitz August 08 Late 2023"]
[White "Yu, Jennifer"]
[Black "Fernandez Siles, Luis"]
[WhiteFideId "2078341"]
[BlackFideId "2209420"]
[WhiteElo "2506"]
[BlackElo "2343"]
[Result "1-0"]
[Round "5"]
[TimeControl "180+1"]
[Date "2023.08.08"]
[WhiteClock "0:01:01"]
[BlackClock "0:00:40"]
[Board "108"]

1. d4 {[%clk 0:03:00]}  Nf6 {[%clk 0:02:59]} 2. c4 {[%clk 0:03:00]}  g6 {[%clk 0:02:58]} 3. Nc3 {[%clk 0:03:00]}  Bg7 {[%clk 0:02:58]} 4. g3 {[%clk 0:03:00]}  O-O {[%clk 0:02:58]} 5. Bg2 {[%clk 0:03:01]}  d6 {[%clk 0:02:57]} 6. Nf3 {[%clk 0:03:02]}  c6 {[%clk 0:02:57]} 7. O-O {[%clk 0:03:02]}  Qa5 {[%clk 0:02:58]} 8. Ne1 {[%clk 0:03:00]}  Qh5 {[%clk 0:02:54]} 9. Nd3 {[%clk 0:02:54]}  g5 {[%clk 0:02:50]} 10. e4 {[%clk 0:02:47]}  Bg4 {[%clk 0:02:44]} 11. f3 {[%clk 0:02:43]}  Bh3 {[%clk 0:02:44]} 12. Be3 {[%clk 0:02:39]}  Bxg2 {[%clk 0:02:24]} 13. Kxg2 {[%clk 0:02:40]}  h6 {[%clk 0:02:23]} 14. e5 {[%clk 0:02:30]}  Nfd7 {[%clk 0:02:20]} 15. f4 {[%clk 0:02:24]}  Qxd1 {[%clk 0:02:17]} 16. Raxd1 {[%clk 0:02:25]}  f6 {[%clk 0:02:04]} 17. e6 {[%clk 0:02:16]}  Nb6 {[%clk 0:02:04]} 18. b3 {[%clk 0:02:17]}  Na6 {[%clk 0:01:52]} 19. a3 {[%clk 0:02:12]}  f5 {[%clk 0:01:37]} 20. fxg5 {[%clk 0:02:05]}  hxg5 {[%clk 0:01:36]} 21. Bxg5 {[%clk 0:02:00]}  Bxd4 {[%clk 0:01:35]} 22. Ne2 {[%clk 0:02:00]}  Bg7 {[%clk 0:01:15]} 23. Bxe7 {[%clk 0:02:00]}  Rfe8 {[%clk 0:01:15]} 24. Bxd6 {[%clk 0:02:01]}  Rxe6 {[%clk 0:01:15]} 25. Ndf4 {[%clk 0:02:02]}  Re3 {[%clk 0:01:11]} 26. Nd4 {[%clk 0:01:34]}  Bxd4 {[%clk 0:01:06]} 27. Rxd4 {[%clk 0:01:34]}  Rxb3 {[%clk 0:01:06]} 28. Nh5 {[%clk 0:01:15]}  Rd8 {[%clk 0:00:51]} 29. Rxf5 {[%clk 0:01:13]}  Nxc4 {[%clk 0:00:52]} 30. Rg4+ {[%clk 0:01:11]}  Kh7 {[%clk 0:00:44]} 31. Rf7+ {[%clk 0:01:06]}  Kh6 {[%clk 0:00:44]} 32. Bf4+ {[%clk 0:01:01]}  Kxh5 {[%clk 0:00:42]} 33. Rg5+ {[%clk 0:01:00]}  Kh6 {[%clk 0:00:42]} 34. Rg8+ {[%clk 0:01:00]}  Kh5 {[%clk 0:00:40]} 35. Rh7# {[%clk 0:01:01]} 1-0


[Site "https://www.chess.com"]

[Event "Titled Tuesday Blitz August 08 Late 2023"]
[White "Remolar Gallen, Jose"]
[Black "UgarteCesar"]
[WhiteFideId "2215187"]
[WhiteElo "2500"]
[BlackElo "2322"]
[Result "1-0"]
[Round "5"]
[TimeControl "180+1"]
[Date "2023.08.08"]
[WhiteClock "0:00:25"]
[BlackClock "0:00:00"]
[Board "111"]

1. e4 {[%clk 0:03:00]}  c5 {[%clk 0:03:00]} 2. Nf3 {[%clk 0:03:00]}  Nc6 {[%clk 0:03:00]} 3. c3 {[%clk 0:02:58]}  d5 {[%clk 0:02:59]} 4. exd5 {[%clk 0:02:58]}  Qxd5 {[%clk 0:03:00]} 5. d4 {[%clk 0:02:58]}  Bg4 {[%clk 0:02:58]} 6. Be2 {[%clk 0:02:58]}  cxd4 {[%clk 0:02:58]} 7. cxd4 {[%clk 0:02:56]}  e6 {[%clk 0:02:58]} 8. Nc3 {[%clk 0:02:55]}  Bb4 {[%clk 0:02:58]} 9. h3 {[%clk 0:02:52]}  Bh5 {[%clk 0:02:54]} 10. O-O {[%clk 0:02:51]}  Qa5 {[%clk 0:02:53]} 11. Be3 {[%clk 0:02:44]}  Nge7 {[%clk 0:02:50]} 12. Qb3 {[%clk 0:02:39]}  O-O {[%clk 0:02:46]} 13. Ne4 {[%clk 0:02:23]}  Nd5 {[%clk 0:02:34]} 14. a3 {[%clk 0:02:22]}  Be7 {[%clk 0:02:33]} 15. Rac1 {[%clk 0:02:11]}  Qb6 {[%clk 0:02:22]} 16. Qxb6 {[%clk 0:01:59]}  Nxb6 {[%clk 0:02:02]} 17. Nc5 {[%clk 0:01:50]}  Rab8 {[%clk 0:01:57]} 18. Nxb7 {[%clk 0:01:38]}  Nxd4 {[%clk 0:01:42]} 19. Nxd4 {[%clk 0:01:35]}  Bxe2 {[%clk 0:01:42]} 20. Rfe1 {[%clk 0:01:26]}  Ba6 {[%clk 0:01:26]} 21. Na5 {[%clk 0:01:01]}  Bf6 {[%clk 0:01:15]} 22. b4 {[%clk 0:00:51]}  Nd5 {[%clk 0:01:13]} 23. Nac6 {[%clk 0:00:49]}  Ra8 {[%clk 0:01:12]} 24. b5 {[%clk 0:00:43]}  Bb7 {[%clk 0:01:12]} 25. a4 {[%clk 0:00:43]}  g6 {[%clk 0:01:02]} 26. a5 {[%clk 0:00:34]}  Rfc8 {[%clk 0:00:47]} 27. a6 {[%clk 0:00:33]}  Bxc6 {[%clk 0:00:44]} 28. Nxc6 {[%clk 0:00:34]}  Nxe3 {[%clk 0:00:39]} 29. fxe3 {[%clk 0:00:34]}  Kf8 {[%clk 0:00:33]} 30. Red1 {[%clk 0:00:34]}  Bg5 {[%clk 0:00:32]} 31. Kf2 {[%clk 0:00:34]}  Ke8 {[%clk 0:00:32]} 32. Rd3 {[%clk 0:00:33]}  Rc7 {[%clk 0:00:28]} 33. Rcd1 {[%clk 0:00:34]}  Bh4+ {[%clk 0:00:24]} 34. g3 {[%clk 0:00:33]}  Bf6 {[%clk 0:00:25]} 35. Kf3 {[%clk 0:00:32]}  h5 {[%clk 0:00:25]} 36. h4 {[%clk 0:00:32]}  Rac8 {[%clk 0:00:24]} 37. e4 {[%clk 0:00:32]}  Rxc6 {[%clk 0:00:20]} 38. bxc6 {[%clk 0:00:32]}  Rxc6 {[%clk 0:00:21]} 39. Rd6 {[%clk 0:00:32]}  Rc3+ {[%clk 0:00:20]} 40. R1d3 {[%clk 0:00:32]}  Rc1 {[%clk 0:00:19]} 41. Rb3 {[%clk 0:00:32]}  Ra1 {[%clk 0:00:18]} 42. Rb7 {[%clk 0:00:31]}  Be5 {[%clk 0:00:13]} 43. Rc6 {[%clk 0:00:30]}  Kf8 {[%clk 0:00:10]} 44. Rxa7 {[%clk 0:00:26]}  Ra3+ {[%clk 0:00:09]} 45. Ke2 {[%clk 0:00:26]}  Rxg3 {[%clk 0:00:08]} 46. Rb7 {[%clk 0:00:25]}  Ra3 {[%clk 0:00:07]} 47. a7 {[%clk 0:00:26]}  Kg7 {[%clk 0:00:00]} 48. Rc8 {[%clk 0:00:25]} 1-0


[Site "https://www.chess.com"]

[Event "Titled Tuesday Blitz August 08 Late 2023"]
[White "Sebag, Marie"]
[Black "Sarkar, Justin"]
[WhiteFideId "617822"]
[BlackFideId "2010011"]
[WhiteElo "2495"]
[BlackElo "2245"]
[Result "1-0"]
[Round "5"]
[TimeControl "180+1"]
[Date "2023.08.08"]
[WhiteClock "0:01:15"]
[BlackClock "0:00:00"]
[Board "113"]

1. d4 {[%clk 0:02:59]}  Nf6 {[%clk 0:02:39]} 2. c4 {[%clk 0:02:57]}  e6 {[%clk 0:02:38]} 3. Nc3 {[%clk 0:02:58]}  Bb4 {[%clk 0:02:37]} 4. e3 {[%clk 0:02:57]}  O-O {[%clk 0:02:34]} 5. Bd3 {[%clk 0:02:57]}  d5 {[%clk 0:02:32]} 6. Ne2 {[%clk 0:02:57]}  dxc4 {[%clk 0:02:19]} 7. Bxc4 {[%clk 0:02:56]}  e5 {[%clk 0:02:18]} 8. O-O {[%clk 0:02:51]}  exd4 {[%clk 0:02:10]} 9. exd4 {[%clk 0:02:49]}  Nbd7 {[%clk 0:02:04]} 10. Bg5 {[%clk 0:02:48]}  h6 {[%clk 0:01:55]} 11. Bh4 {[%clk 0:02:47]}  Be7 {[%clk 0:01:53]} 12. Qd3 {[%clk 0:02:38]}  Nb6 {[%clk 0:01:37]} 13. Bb3 {[%clk 0:02:37]}  Nfd5 {[%clk 0:01:23]} 14. Bc2 {[%clk 0:02:27]}  g6 {[%clk 0:01:18]} 15. Bxe7 {[%clk 0:02:17]}  Qxe7 {[%clk 0:01:17]} 16. Qd2 {[%clk 0:02:16]}  Kg7 {[%clk 0:01:10]} 17. Rfe1 {[%clk 0:02:15]}  Be6 {[%clk 0:01:00]} 18. Nf4 {[%clk 0:02:07]}  Nxf4 {[%clk 0:00:53]} 19. Qxf4 {[%clk 0:02:07]}  Qd6 {[%clk 0:00:50]} 20. Qh4 {[%clk 0:01:54]}  Rad8 {[%clk 0:00:46]} 21. Rad1 {[%clk 0:01:54]}  Nd5 {[%clk 0:00:40]} 22. Bb3 {[%clk 0:01:41]}  Qf4 {[%clk 0:00:33]} 23. Qxf4 {[%clk 0:01:33]}  Nxf4 {[%clk 0:00:33]} 24. d5 {[%clk 0:01:33]}  Bf5 {[%clk 0:00:22]} 25. g3 {[%clk 0:01:24]}  Nd3 {[%clk 0:00:17]} 26. Re7 {[%clk 0:01:21]}  Nxb2 {[%clk 0:00:02]} 27. Rd2 {[%clk 0:01:16]}  Nd3 {[%clk 0:00:00]} 28. g4 {[%clk 0:01:15]} 1-0


[Site "https://www.chess.com"]

[Event "Titled Tuesday Blitz August 08 Late 2023"]
[White "laskakid"]
[Black "Sadilek, Peter"]
[BlackFideId "1616439"]
[WhiteElo "2099"]
[BlackElo "2485"]
[Result "0-1"]
[Round "5"]
[TimeControl "180+1"]
[Date "2023.08.08"]
[WhiteClock "0:00:00"]
[BlackClock "0:01:03"]
[Board "116"]

1. e4 {[%clk 0:03:00]}  e5 {[%clk 0:02:59]} 2. Nf3 {[%clk 0:03:00]}  Nc6 {[%clk 0:03:00]} 3. Bc4 {[%clk 0:03:00]}  Nf6 {[%clk 0:03:00]} 4. d3 {[%clk 0:02:59]}  Bc5 {[%clk 0:03:00]} 5. c3 {[%clk 0:02:59]}  d6 {[%clk 0:03:00]} 6. O-O {[%clk 0:02:58]}  a5 {[%clk 0:02:59]} 7. Re1 {[%clk 0:02:52]}  h6 {[%clk 0:02:58]} 8. Bb3 {[%clk 0:02:43]}  O-O {[%clk 0:02:57]} 9. h3 {[%clk 0:02:41]}  Re8 {[%clk 0:02:48]} 10. Bc2 {[%clk 0:02:22]}  Ba7 {[%clk 0:02:35]} 11. d4 {[%clk 0:02:13]}  exd4 {[%clk 0:02:30]} 12. cxd4 {[%clk 0:02:13]}  Nb4 {[%clk 0:02:30]} 13. Nc3 {[%clk 0:02:13]}  Nxc2 {[%clk 0:02:30]} 14. Qxc2 {[%clk 0:02:13]}  Bd7 {[%clk 0:02:24]} 15. e5 {[%clk 0:02:13]}  Nh7 {[%clk 0:02:14]} 16. Be3 {[%clk 0:02:12]}  dxe5 {[%clk 0:02:10]} 17. dxe5 {[%clk 0:02:05]}  Bxe3 {[%clk 0:02:06]} 18. Rxe3 {[%clk 0:02:05]}  Bc6 {[%clk 0:02:06]} 19. Rd1 {[%clk 0:01:52]}  Qe7 {[%clk 0:02:06]} 20. Nd5 {[%clk 0:01:50]}  Bxd5 {[%clk 0:02:06]} 21. Rxd5 {[%clk 0:01:50]}  Nf8 {[%clk 0:02:02]} 22. Nd4 {[%clk 0:01:38]}  Red8 {[%clk 0:01:58]} 23. Nf5 {[%clk 0:01:30]}  Qe6 {[%clk 0:01:58]} 24. Rxd8 {[%clk 0:01:26]}  Rxd8 {[%clk 0:01:59]} 25. Qxc7 {[%clk 0:01:25]}  Rd1+ {[%clk 0:01:58]} 26. Kh2 {[%clk 0:01:24]}  Qxf5 {[%clk 0:01:59]} 27. Rf3 {[%clk 0:01:04]}  Qd7 {[%clk 0:01:53]} 28. Qxa5 {[%clk 0:01:02]}  Rd5 {[%clk 0:01:46]} 29. Qc3 {[%clk 0:01:00]}  Ne6 {[%clk 0:01:46]} 30. b3 {[%clk 0:00:56]}  Rc5 {[%clk 0:01:35]} 31. Qe3 {[%clk 0:00:53]}  Qd5 {[%clk 0:01:33]} 32. Rf5 {[%clk 0:00:46]}  g6 {[%clk 0:01:21]} 33. b4 {[%clk 0:00:32]}  Rc4 {[%clk 0:01:16]} 34. Rf3 {[%clk 0:00:21]}  Re4 {[%clk 0:01:16]} 35. Qxh6 {[%clk 0:00:21]}  Qxe5+ {[%clk 0:01:17]} 36. g3 {[%clk 0:00:20]}  Re1 {[%clk 0:01:11]} 37. h4 {[%clk 0:00:18]}  Qe4 {[%clk 0:01:10]} 38. Kg2 {[%clk 0:00:12]}  Nd4 {[%clk 0:01:08]} 39. Qf4 {[%clk 0:00:05]}  Qxf3+ {[%clk 0:01:01]} 40. Qxf3 {[%clk 0:00:05]}  Nxf3 {[%clk 0:01:02]} 41. Kxf3 {[%clk 0:00:00]}  Ra1 {[%clk 0:01:03]} 0-1


[Site "https://www.chess.com"]

[Event "Titled Tuesday Blitz August 08 Late 2023"]
[White "Erzhanov, Arman"]
[Black "Djordjevic, Dejan N"]
[WhiteFideId "4138821"]
[BlackFideId "913316"]
[WhiteElo "2607"]
[BlackElo "2054"]
[Result "1-0"]
[Round "5"]
[TimeControl "180+1"]
[Date "2023.08.08"]
[WhiteClock "0:01:34"]
[BlackClock "0:00:12"]
[Board "117"]

1. e4 {[%clk 0:02:58]}  c5 {[%clk 0:02:59]} 2. Nf3 {[%clk 0:02:57]}  Nc6 {[%clk 0:02:59]} 3. Bb5 {[%clk 0:02:57]}  g6 {[%clk 0:02:59]} 4. O-O {[%clk 0:02:57]}  Bg7 {[%clk 0:02:58]} 5. c3 {[%clk 0:02:58]}  Nf6 {[%clk 0:02:56]} 6. Qa4 {[%clk 0:02:58]}  O-O {[%clk 0:02:53]} 7. d4 {[%clk 0:02:58]}  cxd4 {[%clk 0:02:43]} 8. cxd4 {[%clk 0:02:59]}  Qc7 {[%clk 0:02:37]} 9. Nc3 {[%clk 0:02:55]}  d6 {[%clk 0:02:19]} 10. Bg5 {[%clk 0:02:55]}  e6 {[%clk 0:02:02]} 11. Rac1 {[%clk 0:02:53]}  Bd7 {[%clk 0:01:57]} 12. d5 {[%clk 0:02:40]}  Nb8 {[%clk 0:01:23]} 13. dxe6 {[%clk 0:02:20]}  fxe6 {[%clk 0:00:58]} 14. Nd5 {[%clk 0:02:20]}  Qd8 {[%clk 0:00:57]} 15. Nc7 {[%clk 0:02:16]}  Nc6 {[%clk 0:00:47]} 16. Nxa8 {[%clk 0:02:14]}  Qxa8 {[%clk 0:00:46]} 17. Rfd1 {[%clk 0:02:13]}  Ne8 {[%clk 0:00:42]} 18. Be7 {[%clk 0:02:06]}  Rxf3 {[%clk 0:00:35]} 19. gxf3 {[%clk 0:02:05]}  Qb8 {[%clk 0:00:32]} 20. Bh4 {[%clk 0:01:52]}  a6 {[%clk 0:00:31]} 21. Bf1 {[%clk 0:01:50]}  Ne5 {[%clk 0:00:31]} 22. Qb3 {[%clk 0:01:42]}  Kf7 {[%clk 0:00:25]} 23. Bh3 {[%clk 0:01:41]}  Nf6 {[%clk 0:00:20]} 24. Bg3 {[%clk 0:01:38]}  Ne8 {[%clk 0:00:18]} 25. f4 {[%clk 0:01:35]}  Nc6 {[%clk 0:00:18]} 26. f5 {[%clk 0:01:34]}  gxf5 {[%clk 0:00:17]} 27. exf5 {[%clk 0:01:34]}  Ne5 {[%clk 0:00:12]} 28. fxe6+ {[%clk 0:01:34]} 1-0


[Site "https://www.chess.com"]

[Event "Titled Tuesday Blitz August 08 Late 2023"]
[White "Altman, Joshua"]
[Black "kiwibobo"]
[WhiteFideId "426210"]
[WhiteElo "2589"]
[BlackElo "2385"]
[Result "1-0"]
[Round "5"]
[TimeControl "180+1"]
[Date "2023.08.08"]
[WhiteClock "0:00:16"]
[BlackClock "0:00:00"]
[Board "120"]

1. Nf3 {[%clk 0:03:00]}  Nf6 {[%clk 0:03:00]} 2. b3 {[%clk 0:03:00]}  g6 {[%clk 0:03:00]} 3. Bb2 {[%clk 0:03:00]}  Bg7 {[%clk 0:03:01]} 4. g3 {[%clk 0:03:00]}  O-O {[%clk 0:03:01]} 5. Bg2 {[%clk 0:03:01]}  d6 {[%clk 0:03:02]} 6. d4 {[%clk 0:03:00]}  b5 {[%clk 0:03:01]} 7. O-O {[%clk 0:02:57]}  d5 {[%clk 0:02:57]} 8. Ne5 {[%clk 0:02:45]}  c6 {[%clk 0:02:44]} 9. c4 {[%clk 0:02:37]}  bxc4 {[%clk 0:02:41]} 10. bxc4 {[%clk 0:02:37]}  Qb6 {[%clk 0:02:40]} 11. Qb3 {[%clk 0:02:31]}  Be6 {[%clk 0:02:38]} 12. c5 {[%clk 0:02:18]}  Qc7 {[%clk 0:02:33]} 13. Nd2 {[%clk 0:02:07]}  Nbd7 {[%clk 0:02:32]} 14. f4 {[%clk 0:01:35]}  Rfb8 {[%clk 0:02:13]} 15. Qc2 {[%clk 0:01:34]}  Bf5 {[%clk 0:02:08]} 16. Qc1 {[%clk 0:01:32]}  h5 {[%clk 0:02:04]} 17. h3 {[%clk 0:01:27]}  Qc8 {[%clk 0:01:53]} 18. Kh2 {[%clk 0:01:25]}  Qb7 {[%clk 0:01:36]} 19. Bc3 {[%clk 0:01:24]}  Nf8 {[%clk 0:01:06]} 20. Bf3 {[%clk 0:00:56]}  Qc8 {[%clk 0:01:05]} 21. Bg2 {[%clk 0:00:55]}  N6d7 {[%clk 0:00:40]} 22. Ndf3 {[%clk 0:00:53]}  f6 {[%clk 0:00:36]} 23. Nxd7 {[%clk 0:00:51]}  Nxd7 {[%clk 0:00:34]} 24. Nh4 {[%clk 0:00:51]}  Nf8 {[%clk 0:00:31]} 25. Nxf5 {[%clk 0:00:49]}  Qxf5 {[%clk 0:00:32]} 26. e4 {[%clk 0:00:45]}  dxe4 {[%clk 0:00:31]} 27. Qe3 {[%clk 0:00:45]}  Rd8 {[%clk 0:00:20]} 28. Bxe4 {[%clk 0:00:44]}  Qe6 {[%clk 0:00:19]} 29. Rae1 {[%clk 0:00:44]}  Qxa2+ {[%clk 0:00:19]} 30. Rf2 {[%clk 0:00:42]}  Qe6 {[%clk 0:00:18]} 31. Qf3 {[%clk 0:00:39]}  Qf7 {[%clk 0:00:17]} 32. Bxc6 {[%clk 0:00:37]}  Rac8 {[%clk 0:00:18]} 33. Rfe2 {[%clk 0:00:33]}  Rc7 {[%clk 0:00:16]} 34. Ba5 {[%clk 0:00:32]}  Rxc6 {[%clk 0:00:16]} 35. Bxd8 {[%clk 0:00:28]}  Rc8 {[%clk 0:00:15]} 36. Rxe7 {[%clk 0:00:27]}  Qa2+ {[%clk 0:00:16]} 37. R1e2 {[%clk 0:00:27]}  Qc4 {[%clk 0:00:15]} 38. Ba5 {[%clk 0:00:19]}  Qb5 {[%clk 0:00:15]} 39. Bc3 {[%clk 0:00:18]}  a5 {[%clk 0:00:14]} 40. Qd5+ {[%clk 0:00:17]}  Kh8 {[%clk 0:00:13]} 41. Qf7 {[%clk 0:00:16]}  Bh6 {[%clk 0:00:10]} 42. Qxf6+ {[%clk 0:00:16]}  Kg8 {[%clk 0:00:09]} 43. Qf7+ {[%clk 0:00:16]}  Kh8 {[%clk 0:00:00]} 44. d5+ {[%clk 0:00:16]} 1-0


[Site "https://www.chess.com"]